[Event "Late-Titled-Tuesday-Blitz-May-07-2024"]
[Site "Chess.com"]
[Date "2024.05.07"]
[Round "11"]
[White "mfschulz"]
[Black "gabduschew"]
[Result "1/2-1/2"]
[WhiteElo "2340"]
[BlackElo "2406"]
[TimeControl "180+1"]
[EndTime "16:06:10 PDT"]
[Termination "Game drawn by repetition"]

1. d4 {[%clk 0:02:48.4]} 1... d5 {[%clk 0:02:48.2]} 2. Bg5 {[%clk 0:02:47.9]}
2... Nf6 {[%clk 0:02:47.6]} 3. Bxf6 {[%clk 0:02:47.4]} 3... exf6 {[%clk
0:02:48.5]} 4. e3 {[%clk 0:02:47.6]} 4... c5 {[%clk 0:02:48.7]} 5. Nc3 {[%clk
0:02:46.7]} 5... Qb6 {[%clk 0:02:37.1]} 6. Nxd5 {[%clk 0:02:43.1]} 6... Qa5+
{[%clk 0:02:30.9]} 7. Qd2 {[%clk 0:02:37]} 7... Qd8 {[%clk 0:02:28.8]} 8. dxc5
{[%clk 0:02:33.6]} 8... Bxc5 {[%clk 0:02:29.7]} 9. O-O-O {[%clk 0:02:30]} 9...
O-O {[%clk 0:02:29.6]} 10. Nf3 {[%clk 0:02:25.5]} 10... Be6 {[%clk 0:02:29.4]}
11. Nc3 {[%clk 0:02:16.8]} 11... Qe7 {[%clk 0:02:23.3]} 12. Kb1 {[%clk
0:02:09.8]} 12... Nc6 {[%clk 0:02:22.7]} 13. Bd3 {[%clk 0:02:09.6]} 13... Rfd8
{[%clk 0:02:21.8]} 14. Qe2 {[%clk 0:01:56.2]} 14... Bb4 {[%clk 0:02:18.1]} 15.
Ne4 {[%clk 0:01:52.9]} 15... a5 {[%clk 0:02:13.1]} 16. c3 {[%clk 0:01:50.9]}
16... Bc5 {[%clk 0:02:10.4]} 17. Nxc5 {[%clk 0:01:50.2]} 17... Qxc5 {[%clk
0:02:11.3]} 18. Nd4 {[%clk 0:01:46.3]} 18... a4 {[%clk 0:02:11.5]} 19. Nxe6
{[%clk 0:01:45.2]} 19... fxe6 {[%clk 0:02:12.4]} 20. Bc4 {[%clk 0:01:44.8]}
20... Kf7 {[%clk 0:02:10.6]} 21. a3 {[%clk 0:01:39.5]} 21... Ne5 {[%clk
0:02:08.9]} 22. Ba2 {[%clk 0:01:38.1]} 22... Qc6 {[%clk 0:02:04.3]} 23. f4
{[%clk 0:01:36.7]} 23... Nd7 {[%clk 0:02:00.2]} 24. f5 {[%clk 0:01:36.6]} 24...
Nc5 {[%clk 0:01:59.1]} 25. fxe6+ {[%clk 0:01:26.4]} 25... Nxe6 {[%clk
0:01:59.2]} 26. Qg4 {[%clk 0:01:21.1]} 26... g6 {[%clk 0:01:43.2]} 27. Rxd8
{[%clk 0:01:13.2]} 27... Rxd8 {[%clk 0:01:44.1]} 28. Rd1 {[%clk 0:01:12.6]}
28... Rxd1+ {[%clk 0:01:42.9]} 29. Qxd1 {[%clk 0:01:12.4]} 29... Ke7 {[%clk
0:01:42.4]} 30. Bxe6 {[%clk 0:01:06]} 30... Kxe6 {[%clk 0:01:34.4]} 31. Qc2
{[%clk 0:00:54.6]} 31... Qc4 {[%clk 0:01:25.9]} 32. h3 {[%clk 0:00:47.1]} 32...
Qf1+ {[%clk 0:01:25.6]} 33. Ka2 {[%clk 0:00:46.4]} 33... Qc4+ {[%clk 0:01:24.6]}
34. Kb1 {[%clk 0:00:46.1]} 34... b5 {[%clk 0:01:10.3]} 35. g4 {[%clk 0:00:45.9]}
35... Qf1+ {[%clk 0:01:06.6]} 36. Ka2 {[%clk 0:00:45.2]} 36... Qxh3 {[%clk
0:01:03.9]} 37. Qe4+ {[%clk 0:00:45.3]} 37... Kd6 {[%clk 0:00:59.6]} 38. Qd4+
{[%clk 0:00:41.2]} 38... Ke6 {[%clk 0:00:53.7]} 39. Qb6+ {[%clk 0:00:40]} 39...
Kf7 {[%clk 0:00:53.8]} 40. Qc7+ {[%clk 0:00:34.4]} 40... Kf8 {[%clk 0:00:49.1]}
41. Qd8+ {[%clk 0:00:34.1]} 41... Kf7 {[%clk 0:00:47.6]} 42. Qd7+ {[%clk
0:00:34.1]} 42... Kf8 {[%clk 0:00:47.7]} 43. Qd8+ {[%clk 0:00:34.3]} 43... Kf7
{[%clk 0:00:48.2]} 44. Qd7+ {[%clk 0:00:34.4]} 44... Kf8 {[%clk 0:00:46.4]} 45.
Qd8+ {[%clk 0:00:33.8]} 1/2-1/2

[Event "Late-Titled-Tuesday-Blitz-May-07-2024"]
[Site "Chess.com"]
[Date "2024.05.07"]
[Round "11"]
[White "GMKrikor"]
[Black "Adar_07"]
[Result "0-1"]
[WhiteElo "2830"]
[BlackElo "2751"]
[TimeControl "180+1"]
[EndTime "16:06:21 PDT"]
[Termination "Adar_07 won on time"]

1. Nf3 {[%clk 0:03:00.9]} 1... d5 {[%clk 0:02:59.3]} 2. c4 {[%clk 0:03:01.1]}
2... d4 {[%clk 0:02:59.4]} 3. b4 {[%clk 0:03:01.4]} 3... c5 {[%clk 0:02:56.9]}
4. Bb2 {[%clk 0:03:01.2]} 4... f6 {[%clk 0:02:54.4]} 5. e3 {[%clk 0:02:59.3]}
5... e5 {[%clk 0:02:54.5]} 6. d3 {[%clk 0:02:58.9]} 6... dxe3 {[%clk 0:02:53.4]}
7. fxe3 {[%clk 0:02:58.6]} 7... cxb4 {[%clk 0:02:53.6]} 8. Nbd2 {[%clk
0:02:39.1]} 8... Bd6 {[%clk 0:02:49.8]} 9. d4 {[%clk 0:02:36.8]} 9... exd4
{[%clk 0:02:49.9]} 10. exd4 {[%clk 0:02:37.7]} 10... Ne7 {[%clk 0:02:50.3]} 11.
Qb3 {[%clk 0:02:22.2]} 11... Be6 {[%clk 0:02:49.1]} 12. Bd3 {[%clk 0:02:18.2]}
12... O-O {[%clk 0:02:45.7]} 13. O-O {[%clk 0:02:18.1]} 13... Ng6 {[%clk
0:02:42.9]} 14. Rae1 {[%clk 0:02:16.7]} 14... Bf7 {[%clk 0:02:41.9]} 15. Qc2
{[%clk 0:02:11.6]} 15... Nc6 {[%clk 0:02:38.3]} 16. Ne4 {[%clk 0:01:55.5]} 16...
Rc8 {[%clk 0:02:30.9]} 17. g3 {[%clk 0:01:04.4]} 17... Re8 {[%clk 0:02:22.4]}
18. c5 {[%clk 0:00:55.2]} 18... Bb8 {[%clk 0:02:16.8]} 19. Bc4 {[%clk
0:00:55.4]} 19... Bxc4 {[%clk 0:02:14.5]} 20. Qxc4+ {[%clk 0:00:55.1]} 20... Kh8
{[%clk 0:02:15.4]} 21. d5 {[%clk 0:00:50.2]} 21... Nce5 {[%clk 0:02:14]} 22.
Nxe5 {[%clk 0:00:50.1]} 22... Bxe5 {[%clk 0:02:11.5]} 23. Bxe5 {[%clk
0:00:45.6]} 23... Nxe5 {[%clk 0:02:12.4]} 24. Qd4 {[%clk 0:00:45.8]} 24... Qa5
{[%clk 0:01:38.5]} 25. Nd6 {[%clk 0:00:24.6]} 25... Nf3+ {[%clk 0:01:37.3]} 26.
Rxf3 {[%clk 0:00:25.1]} 26... Rxe1+ {[%clk 0:01:37.3]} 27. Kf2 {[%clk
0:00:23.6]} 27... Rxc5 {[%clk 0:00:55.4]} 28. Kxe1 {[%clk 0:00:20.1]} 28... b3+
{[%clk 0:00:55.6]} 29. Kf2 {[%clk 0:00:16.2]} 29... Rc2+ {[%clk 0:00:49.4]} 30.
Ke3 {[%clk 0:00:14.2]} 30... bxa2 {[%clk 0:00:47.3]} 31. Rf1 {[%clk 0:00:11.1]}
31... Qa3+ {[%clk 0:00:44.3]} 32. Qd3 {[%clk 0:00:07.1]} 32... Rc3 {[%clk
0:00:44.4]} 0-1

[Event "Late-Titled-Tuesday-Blitz-May-07-2024"]
[Site "Chess.com"]
[Date "2024.05.07"]
[Round "11"]
[White "baki83"]
[Black "Oleksandr_Bortnyk"]
[Result "1-0"]
[WhiteElo "2945"]
[BlackElo "3062"]
[TimeControl "180+1"]
[EndTime "16:06:23 PDT"]
[Termination "baki83 won by resignation"]

1. e4 {[%clk 0:03:00.9]} 1... e5 {[%clk 0:02:53.7]} 2. Nf3 {[%clk 0:03:00.5]}
2... Ke7 {[%clk 0:02:54.4]} 3. Nxe5 {[%clk 0:02:56.4]} 3... d6 {[%clk
0:02:53.5]} 4. Nf3 {[%clk 0:02:56.7]} 4... g6 {[%clk 0:02:53.7]} 5. Nc3 {[%clk
0:02:56.8]} 5... Bg7 {[%clk 0:02:54.3]} 6. d4 {[%clk 0:02:57.1]} 6... Kf8 {[%clk
0:02:53.6]} 7. h3 {[%clk 0:02:57.5]} 7... Nc6 {[%clk 0:02:53.6]} 8. Be3 {[%clk
0:02:57.6]} 8... a6 {[%clk 0:02:52.7]} 9. Bc4 {[%clk 0:02:57.4]} 9... b5 {[%clk
0:02:52.9]} 10. Bb3 {[%clk 0:02:57]} 10... Na5 {[%clk 0:02:53.4]} 11. O-O {[%clk
0:02:55]} 11... Nxb3 {[%clk 0:02:53.5]} 12. axb3 {[%clk 0:02:55.5]} 12... Bb7
{[%clk 0:02:54.4]} 13. d5 {[%clk 0:02:52.7]} 13... Qd7 {[%clk 0:02:52.5]} 14.
Bd4 {[%clk 0:02:51.5]} 14... Re8 {[%clk 0:02:51.2]} 15. Bxg7+ {[%clk 0:02:50.2]}
15... Kxg7 {[%clk 0:02:52.1]} 16. Qd4+ {[%clk 0:02:50.1]} 16... f6 {[%clk
0:02:46.9]} 17. Ng5 {[%clk 0:02:40.5]} 17... h5 {[%clk 0:02:32.9]} 18. Ne6+
{[%clk 0:02:33.6]} 18... Kh7 {[%clk 0:02:31.8]} 19. b4 {[%clk 0:02:26.9]} 19...
Qe7 {[%clk 0:02:23.4]} 20. f4 {[%clk 0:02:22]} 20... Nh6 {[%clk 0:02:22.2]} 21.
f5 {[%clk 0:02:18]} 21... gxf5 {[%clk 0:02:19.5]} 22. exf5 {[%clk 0:02:17]}
22... Rhg8 {[%clk 0:02:19.9]} 23. Ne4 {[%clk 0:02:09.9]} 23... Ref8 {[%clk
0:02:05.9]} 24. Nxf8+ {[%clk 0:02:01.7]} 24... Rxf8 {[%clk 0:02:06.8]} 25. Rae1
{[%clk 0:01:54.8]} 25... Qg7 {[%clk 0:02:05.3]} 26. Re2 {[%clk 0:01:41.9]} 26...
Bc8 {[%clk 0:02:03.3]} 27. Ref2 {[%clk 0:01:29.2]} 27... Ng8 {[%clk 0:01:53.1]}
28. Rf4 {[%clk 0:01:23.8]} 28... Nh6 {[%clk 0:01:44.8]} 29. R1f3 {[%clk
0:01:11.5]} 29... Qf7 {[%clk 0:01:42.1]} 30. Kh2 {[%clk 0:01:00]} 30... Bb7
{[%clk 0:01:37.9]} 31. Rg3 {[%clk 0:00:50.4]} 31... Qe7 {[%clk 0:01:19.4]} 32.
Qd1 {[%clk 0:00:38.4]} 32... Rg8 {[%clk 0:00:39.9]} 33. Qxh5 {[%clk 0:00:28.4]}
33... Rxg3 {[%clk 0:00:35.7]} 34. Nxg3 {[%clk 0:00:25.7]} 34... Qg7 {[%clk
0:00:24.2]} 35. Rg4 {[%clk 0:00:24.6]} 35... Qf8 {[%clk 0:00:21.9]} 36. Qg6+
{[%clk 0:00:24.3]} 36... Kh8 {[%clk 0:00:22.2]} 37. Rh4 {[%clk 0:00:24.9]} 1-0

[Event "Late-Titled-Tuesday-Blitz-May-07-2024"]
[Site "Chess.com"]
[Date "2024.05.07"]
[Round "11"]
[White "LeninGuerra"]
[Black "Magicmaster17"]
[Result "1-0"]
[WhiteElo "2670"]
[BlackElo "2866"]
[TimeControl "180+1"]
[EndTime "16:06:25 PDT"]
[Termination "LeninGuerra won by resignation"]

1. e4 {[%clk 0:03:00.9]} 1... c5 {[%clk 0:02:59.1]} 2. Nf3 {[%clk 0:03:00.9]}
2... a6 {[%clk 0:02:58.1]} 3. b4 {[%clk 0:02:59.5]} 3... cxb4 {[%clk 0:02:55.4]}
4. a3 {[%clk 0:02:59.8]} 4... d5 {[%clk 0:02:55.2]} 5. e5 {[%clk 0:02:58.5]}
5... bxa3 {[%clk 0:02:51.7]} 6. Bxa3 {[%clk 0:02:58.6]} 6... Nc6 {[%clk
0:02:52.4]} 7. d4 {[%clk 0:02:57.3]} 7... Bg4 {[%clk 0:02:40.4]} 8. c3 {[%clk
0:02:52.2]} 8... Nh6 {[%clk 0:02:37.7]} 9. Bd3 {[%clk 0:02:50.8]} 9... e6 {[%clk
0:02:37.1]} 10. Bxf8 {[%clk 0:02:49.9]} 10... Kxf8 {[%clk 0:02:38]} 11. Nbd2
{[%clk 0:02:46.5]} 11... g6 {[%clk 0:02:35]} 12. h3 {[%clk 0:02:42]} 12... Bxf3
{[%clk 0:02:34.6]} 13. Qxf3 {[%clk 0:02:42.7]} 13... Kg7 {[%clk 0:02:35.2]} 14.
O-O {[%clk 0:02:40.6]} 14... Rf8 {[%clk 0:02:29.4]} 15. Rfb1 {[%clk 0:02:39.4]}
15... b5 {[%clk 0:02:29.1]} 16. Nb3 {[%clk 0:02:39]} 16... f6 {[%clk 0:02:00.8]}
17. exf6+ {[%clk 0:02:37.7]} 17... Qxf6 {[%clk 0:02:01.7]} 18. Qxf6+ {[%clk
0:02:31.1]} 18... Kxf6 {[%clk 0:02:01]} 19. Nc5 {[%clk 0:02:31.3]} 19... Ra7
{[%clk 0:01:12.8]} 20. Rxa6 {[%clk 0:02:20.7]} 20... Rxa6 {[%clk 0:01:09.5]} 21.
Nxa6 {[%clk 0:02:20.4]} 21... Nf5 {[%clk 0:01:00.4]} 22. Bxb5 {[%clk 0:02:09.8]}
22... Rc8 {[%clk 0:00:59.5]} 23. Nc5 {[%clk 0:02:06]} 23... Nfxd4 {[%clk
0:00:42.8]} 24. cxd4 {[%clk 0:01:58.8]} 24... Nxd4 {[%clk 0:00:43.7]} 25. Nd7+
{[%clk 0:01:44.6]} 25... Ke7 {[%clk 0:00:43]} 26. Ne5 {[%clk 0:01:44.6]} 26...
Kd6 {[%clk 0:00:39.9]} 27. Ng4 {[%clk 0:01:38.2]} 27... Rc3 {[%clk 0:00:32.8]}
28. Bf1 {[%clk 0:01:30.2]} 28... Nb3 {[%clk 0:00:18.7]} 29. Rd1 {[%clk
0:01:27.4]} 29... d4 {[%clk 0:00:17.6]} 30. Nf6 {[%clk 0:01:25]} 30... Ke5
{[%clk 0:00:11.5]} 31. Nxh7 {[%clk 0:01:22.7]} 31... Kf5 {[%clk 0:00:11]} 32.
Bd3+ {[%clk 0:01:19]} 32... Ke5 {[%clk 0:00:08.8]} 33. Bxg6 {[%clk 0:01:16.1]}
33... Nc1 {[%clk 0:00:08.3]} 34. Kf1 {[%clk 0:01:14.6]} 34... d3 {[%clk
0:00:08.5]} 35. Ng5 {[%clk 0:01:07.8]} 35... Rc8 {[%clk 0:00:03.4]} 36. Nf3+
{[%clk 0:01:07.9]} 36... Kf6 {[%clk 0:00:03.3]} 37. Bxd3 {[%clk 0:01:07.2]}
37... Nb3 {[%clk 0:00:03.9]} 38. Be2 {[%clk 0:01:05.2]} 38... Na5 {[%clk
0:00:03.2]} 39. g4 {[%clk 0:01:05.4]} 39... Nc6 {[%clk 0:00:03.3]} 40. g5+
{[%clk 0:01:05.8]} 40... Kf5 {[%clk 0:00:03.3]} 41. Kg2 {[%clk 0:01:03.4]} 41...
Rg8 {[%clk 0:00:02.1]} 42. Kg3 {[%clk 0:01:03.4]} 42... Ne5 {[%clk 0:00:02.2]}
43. Nxe5 {[%clk 0:01:03]} 43... Rxg5+ {[%clk 0:00:02.3]} 44. Ng4 {[%clk
0:01:02.3]} 1-0

[Event "Late-Titled-Tuesday-Blitz-May-07-2024"]
[Site "Chess.com"]
[Date "2024.05.07"]
[Round "11"]
[White "djano"]
[Black "Hirna2005"]
[Result "1-0"]
[WhiteElo "2540"]
[BlackElo "2350"]
[TimeControl "180+1"]
[EndTime "16:06:28 PDT"]
[Termination "djano won by checkmate"]

1. Nf3 {[%clk 0:03:00.9]} 1... g6 {[%clk 0:03:00.5]} 2. h4 {[%clk 0:02:58.9]}
2... Nf6 {[%clk 0:02:58.4]} 3. d4 {[%clk 0:02:53.8]} 3... d6 {[%clk 0:02:58.2]}
4. Nc3 {[%clk 0:02:52.7]} 4... Bg4 {[%clk 0:02:57.7]} 5. e4 {[%clk 0:02:52.4]}
5... Bg7 {[%clk 0:02:55.8]} 6. Be3 {[%clk 0:02:50.2]} 6... Nc6 {[%clk
0:02:55.3]} 7. Qd2 {[%clk 0:02:50.2]} 7... e5 {[%clk 0:02:47.4]} 8. d5 {[%clk
0:02:45.6]} 8... Ne7 {[%clk 0:02:47]} 9. O-O-O {[%clk 0:02:42.4]} 9... Bxf3
{[%clk 0:02:39.1]} 10. gxf3 {[%clk 0:02:42.3]} 10... a6 {[%clk 0:02:39.1]} 11.
Bh3 {[%clk 0:02:38.4]} 11... b5 {[%clk 0:02:35.1]} 12. Kb1 {[%clk 0:02:36.8]}
12... Qb8 {[%clk 0:02:30.6]} 13. Ne2 {[%clk 0:02:34]} 13... h5 {[%clk
0:02:19.1]} 14. Ng3 {[%clk 0:02:28.8]} 14... a5 {[%clk 0:02:13.9]} 15. Rhg1
{[%clk 0:02:28.4]} 15... b4 {[%clk 0:01:58.7]} 16. Nf5 {[%clk 0:02:27.3]} 16...
Bf8 {[%clk 0:01:57.8]} 17. Bg5 {[%clk 0:02:18]} 17... Nd7 {[%clk 0:01:44.2]} 18.
Nxe7 {[%clk 0:01:58.4]} 18... Bxe7 {[%clk 0:01:44.1]} 19. f4 {[%clk 0:01:57.1]}
19... Bxg5 {[%clk 0:01:32.7]} 20. Bxd7+ {[%clk 0:01:53.5]} 20... Kxd7 {[%clk
0:01:32.3]} 21. Rxg5 {[%clk 0:01:52.7]} 21... exf4 {[%clk 0:01:23.5]} 22. Qxf4
{[%clk 0:01:50.6]} 22... Qe8 {[%clk 0:01:23.4]} 23. e5 {[%clk 0:01:50.3]} 23...
Rf8 {[%clk 0:01:12.8]} 24. Qc4 {[%clk 0:01:42.3]} 24... Kc8 {[%clk 0:01:07.6]}
25. exd6 {[%clk 0:01:40.3]} 25... Qd7 {[%clk 0:01:02]} 26. dxc7 {[%clk
0:01:31.2]} 26... Qxc7 {[%clk 0:01:01.2]} 27. Qd4 {[%clk 0:01:27.9]} 27... Qd6
{[%clk 0:00:57.9]} 28. Re5 {[%clk 0:01:19.6]} 28... Rd8 {[%clk 0:00:43.1]} 29.
Rde1 {[%clk 0:01:18.3]} 29... Ra6 {[%clk 0:00:37.5]} 30. Qc4+ {[%clk 0:01:15.5]}
30... Kb8 {[%clk 0:00:35.9]} 31. Re7 {[%clk 0:01:09.1]} 31... Rb6 {[%clk
0:00:23.1]} 32. Rxf7 {[%clk 0:01:02.7]} 32... Rb7 {[%clk 0:00:17.9]} 33. Rxb7+
{[%clk 0:00:57.2]} 33... Kxb7 {[%clk 0:00:18.2]} 34. Qb5+ {[%clk 0:00:57.8]}
34... Kc8 {[%clk 0:00:16.9]} 35. Rd1 {[%clk 0:00:29.1]} 35... Qc7 {[%clk
0:00:15.6]} 36. Qa6+ {[%clk 0:00:26.9]} 36... Kd7 {[%clk 0:00:15.1]} 37. Qe6#
{[%clk 0:00:26.6]} 1-0

[Event "Late-Titled-Tuesday-Blitz-May-07-2024"]
[Site "Chess.com"]
[Date "2024.05.07"]
[Round "11"]
[White "boguszp"]
[Black "HipsterChess22"]
[Result "1-0"]
[WhiteElo "2058"]
[BlackElo "2196"]
[TimeControl "180+1"]
[EndTime "16:06:36 PDT"]
[Termination "boguszp won on time"]

1. d4 {[%clk 0:03:00.9]} 1... d5 {[%clk 0:02:59.6]} 2. Nf3 {[%clk 0:03:00.3]}
2... e6 {[%clk 0:02:59.1]} 3. c4 {[%clk 0:03:00.7]} 3... c6 {[%clk 0:02:58.3]}
4. Nc3 {[%clk 0:02:59.5]} 4... dxc4 {[%clk 0:02:58.3]} 5. a4 {[%clk 0:02:58]}
5... Bb4 {[%clk 0:02:57.5]} 6. e4 {[%clk 0:02:56.5]} 6... b5 {[%clk 0:02:57.2]}
7. Bd2 {[%clk 0:02:48.6]} 7... a5 {[%clk 0:02:56.8]} 8. axb5 {[%clk 0:02:42.8]}
8... Bxc3 {[%clk 0:02:56.6]} 9. Bxc3 {[%clk 0:02:38.5]} 9... cxb5 {[%clk
0:02:56.6]} 10. d5 {[%clk 0:02:37.7]} 10... Nf6 {[%clk 0:02:50]} 11. d6 {[%clk
0:02:25.5]} 11... Bb7 {[%clk 0:02:35.5]} 12. e5 {[%clk 0:02:24]} 12... Nd5
{[%clk 0:02:21.7]} 13. Nd4 {[%clk 0:02:14.4]} 13... b4 {[%clk 0:02:08.1]} 14.
Bd2 {[%clk 0:01:57.8]} 14... Ba6 {[%clk 0:02:03]} 15. Qa4+ {[%clk 0:01:48.5]}
15... Qd7 {[%clk 0:01:50]} 16. Qxa5 {[%clk 0:01:38.8]} 16... Bb7 {[%clk
0:01:40.4]} 17. Qxa8 {[%clk 0:01:36]} 17... Bxa8 {[%clk 0:01:41.3]} 18. Rxa8
{[%clk 0:01:35.1]} 18... O-O {[%clk 0:01:35.4]} 19. Bxc4 {[%clk 0:01:29]} 19...
Nc6 {[%clk 0:01:31]} 20. Rxf8+ {[%clk 0:01:20]} 20... Kxf8 {[%clk 0:01:31.9]}
21. Bb5 {[%clk 0:01:13.1]} 21... Qa7 {[%clk 0:01:29.5]} 22. Nxc6 {[%clk
0:00:57.1]} 22... Qb7 {[%clk 0:00:59]} 23. Ba4 {[%clk 0:00:50.7]} 23... Nb6
{[%clk 0:00:54.2]} 24. Bb5 {[%clk 0:00:44.3]} 24... Nd5 {[%clk 0:00:49.1]} 25.
Ba4 {[%clk 0:00:41.5]} 25... Nb6 {[%clk 0:00:47.9]} 26. Bxb4 {[%clk 0:00:36.4]}
26... Kg8 {[%clk 0:00:31.1]} 27. Ne7+ {[%clk 0:00:33.3]} 27... Kh8 {[%clk
0:00:30.9]} 28. Bc6 {[%clk 0:00:33.4]} 28... Qa7 {[%clk 0:00:26.3]} 29. O-O
{[%clk 0:00:32.1]} 29... f6 {[%clk 0:00:22.2]} 30. Bc5 {[%clk 0:00:28.4]} 30...
fxe5 {[%clk 0:00:19.1]} 31. Rd1 {[%clk 0:00:26.3]} 1-0

[Event "Late-Titled-Tuesday-Blitz-May-07-2024"]
[Site "Chess.com"]
[Date "2024.05.07"]
[Round "11"]
[White "SHIVACalypso"]
[Black "OriTaichman"]
[Result "1-0"]
[WhiteElo "2547"]
[BlackElo "2607"]
[TimeControl "180+1"]
[EndTime "16:06:40 PDT"]
[Termination "SHIVACalypso won by checkmate"]

1. d4 {[%clk 0:02:53.6]} 1... Nf6 {[%clk 0:02:58.7]} 2. c4 {[%clk 0:02:52.6]}
2... g6 {[%clk 0:02:59]} 3. Nf3 {[%clk 0:02:52.2]} 3... Bg7 {[%clk 0:02:59.6]}
4. Nc3 {[%clk 0:02:52.7]} 4... O-O {[%clk 0:03:00.2]} 5. e4 {[%clk 0:02:52.1]}
5... d6 {[%clk 0:03:00.5]} 6. Be2 {[%clk 0:02:50]} 6... e5 {[%clk 0:03:00.3]} 7.
d5 {[%clk 0:02:46.3]} 7... a5 {[%clk 0:02:59.9]} 8. O-O {[%clk 0:02:46.1]} 8...
Na6 {[%clk 0:02:58]} 9. h3 {[%clk 0:02:46.7]} 9... Nc5 {[%clk 0:02:55.3]} 10.
Qc2 {[%clk 0:02:47.2]} 10... Ne8 {[%clk 0:02:48]} 11. b3 {[%clk 0:02:41.9]}
11... f5 {[%clk 0:02:45.3]} 12. Nd2 {[%clk 0:02:42.5]} 12... Nf6 {[%clk
0:02:41.8]} 13. a3 {[%clk 0:02:38]} 13... Bh6 {[%clk 0:02:40.2]} 14. exf5 {[%clk
0:02:34.2]} 14... Bxf5 {[%clk 0:02:38.3]} 15. Qb2 {[%clk 0:02:29.3]} 15... a4
{[%clk 0:02:13]} 16. b4 {[%clk 0:02:27.6]} 16... Nd3 {[%clk 0:02:13]} 17. Bxd3
{[%clk 0:02:26.3]} 17... Bxd3 {[%clk 0:02:13.9]} 18. Re1 {[%clk 0:02:22.7]}
18... Bxd2 {[%clk 0:02:00.7]} 19. Bxd2 {[%clk 0:02:23.6]} 19... Bxc4 {[%clk
0:02:01.6]} 20. Rac1 {[%clk 0:02:23.6]} 20... Qd7 {[%clk 0:01:45.5]} 21. Bg5
{[%clk 0:02:19.2]} 21... Nxd5 {[%clk 0:01:41.3]} 22. Nxd5 {[%clk 0:01:55.6]}
22... Bxd5 {[%clk 0:01:42.2]} 23. Rcd1 {[%clk 0:01:55.8]} 23... Bc6 {[%clk
0:01:39.5]} 24. Rxe5 {[%clk 0:01:51.3]} 24... Rae8 {[%clk 0:01:17.1]} 25. Rxe8
{[%clk 0:01:38.2]} 25... Rxe8 {[%clk 0:01:15.8]} 26. Bh6 {[%clk 0:01:38.7]}
26... Qf7 {[%clk 0:01:09]} 27. b5 {[%clk 0:01:29.1]} 27... Bd7 {[%clk
0:00:53.3]} 28. b6 {[%clk 0:01:28.8]} 28... cxb6 {[%clk 0:00:29.1]} 29. Rxd6
{[%clk 0:01:27.1]} 29... Bc6 {[%clk 0:00:24.7]} 30. Rf6 {[%clk 0:01:17.7]} 30...
Qc7 {[%clk 0:00:16.4]} 31. f4 {[%clk 0:00:58.9]} 31... Qd7 {[%clk 0:00:14.9]}
32. Qe5 {[%clk 0:00:50.1]} 32... b5 {[%clk 0:00:06.3]} 33. Qc5 {[%clk
0:00:42.1]} 33... Re1+ {[%clk 0:00:02.9]} 34. Kh2 {[%clk 0:00:40.9]} 34... Rh1+
{[%clk 0:00:03.1]} 35. Kg3 {[%clk 0:00:36.5]} 35... Rg1 {[%clk 0:00:01.7]} 36.
Qf8# {[%clk 0:00:34.9]} 1-0

[Event "Late-Titled-Tuesday-Blitz-May-07-2024"]
[Site "Chess.com"]
[Date "2024.05.07"]
[Round "11"]
[White "K_A_S_T_O_R"]
[Black "RuperezA"]
[Result "1/2-1/2"]
[WhiteElo "2819"]
[BlackElo "2660"]
[TimeControl "180+1"]
[EndTime "16:06:52 PDT"]
[Termination "Game drawn - insufficient material"]

1. e4 {[%clk 0:02:52.2]} 1... e6 {[%clk 0:03:00.9]} 2. d4 {[%clk 0:02:51.5]}
2... d5 {[%clk 0:03:01.8]} 3. Nc3 {[%clk 0:02:51.1]} 3... Bb4 {[%clk 0:03:01.5]}
4. e5 {[%clk 0:02:50.6]} 4... c5 {[%clk 0:03:02]} 5. Bd2 {[%clk 0:02:49]} 5...
Nh6 {[%clk 0:03:01.3]} 6. Nb5 {[%clk 0:02:47.3]} 6... Bxd2+ {[%clk 0:03:01.3]}
7. Qxd2 {[%clk 0:02:47.8]} 7... O-O {[%clk 0:03:02.2]} 8. c3 {[%clk 0:02:47.1]}
8... cxd4 {[%clk 0:02:59.6]} 9. cxd4 {[%clk 0:02:46.6]} 9... Nc6 {[%clk
0:02:59.4]} 10. f4 {[%clk 0:02:45.3]} 10... Qb6 {[%clk 0:02:54]} 11. Nf3 {[%clk
0:02:44.7]} 11... Bd7 {[%clk 0:02:45.4]} 12. Nd6 {[%clk 0:02:42.4]} 12... Nf5
{[%clk 0:02:36.6]} 13. Nxf5 {[%clk 0:02:41.5]} 13... exf5 {[%clk 0:02:37.5]} 14.
Be2 {[%clk 0:02:38]} 14... Rac8 {[%clk 0:02:37]} 15. Kf2 {[%clk 0:02:37.7]}
15... Na5 {[%clk 0:02:27.6]} 16. b3 {[%clk 0:02:36.1]} 16... Bb5 {[%clk
0:02:27]} 17. Bxb5 {[%clk 0:02:32.5]} 17... Qxb5 {[%clk 0:02:27.9]} 18. Rac1
{[%clk 0:02:33]} 18... h6 {[%clk 0:02:20.2]} 19. h3 {[%clk 0:02:32.1]} 19...
Rfd8 {[%clk 0:02:08.2]} 20. g4 {[%clk 0:02:29.7]} 20... fxg4 {[%clk 0:01:44.4]}
21. hxg4 {[%clk 0:02:29.2]} 21... Nc6 {[%clk 0:01:39.3]} 22. Rc5 {[%clk
0:02:28.4]} 22... Qb4 {[%clk 0:01:35.6]} 23. Rhc1 {[%clk 0:02:26.8]} 23... Qxd2+
{[%clk 0:01:33.1]} 24. Nxd2 {[%clk 0:02:27]} 24... Ne7 {[%clk 0:01:28.3]} 25. f5
{[%clk 0:02:21.6]} 25... h5 {[%clk 0:01:17.2]} 26. Rxc8 {[%clk 0:02:18.3]} 26...
Rxc8 {[%clk 0:01:18.1]} 27. Rxc8+ {[%clk 0:02:14.4]} 27... Nxc8 {[%clk 0:01:19]}
28. Kg3 {[%clk 0:02:00.6]} 28... Ne7 {[%clk 0:01:14.6]} 29. Nf1 {[%clk
0:02:00.3]} 29... hxg4 {[%clk 0:01:10.6]} 30. Kxg4 {[%clk 0:01:58.4]} 30... Nc6
{[%clk 0:01:11.5]} 31. Ne3 {[%clk 0:01:56.6]} 31... Nxd4 {[%clk 0:01:11.9]} 32.
Nxd5 {[%clk 0:01:56.7]} 32... Kf8 {[%clk 0:01:06.6]} 33. Kf4 {[%clk 0:01:55.9]}
33... g6 {[%clk 0:00:58]} 34. fxg6 {[%clk 0:01:52.7]} 34... fxg6 {[%clk
0:00:58.9]} 35. Ke4 {[%clk 0:01:53.3]} 35... Ne6 {[%clk 0:00:57.5]} 36. Nf6
{[%clk 0:01:49.6]} 36... Ke7 {[%clk 0:00:55.9]} 37. b4 {[%clk 0:01:44.5]} 37...
Nc7 {[%clk 0:00:43.5]} 38. Nh7 {[%clk 0:01:35.2]} 38... Na6 {[%clk 0:00:37.5]}
39. a3 {[%clk 0:01:34.1]} 39... Nc7 {[%clk 0:00:38]} 40. Ng5 {[%clk 0:01:26.4]}
40... Nb5 {[%clk 0:00:36.9]} 41. a4 {[%clk 0:01:21.3]} 41... Nc3+ {[%clk
0:00:37]} 42. Kd4 {[%clk 0:01:21.7]} 42... Nxa4 {[%clk 0:00:37.9]} 43. Ne4
{[%clk 0:01:22]} 43... Nb2 {[%clk 0:00:26.6]} 44. Nd6 {[%clk 0:01:20.8]} 44...
g5 {[%clk 0:00:15.1]} 45. Nxb7 {[%clk 0:01:14.5]} 45... Kf7 {[%clk 0:00:14.7]}
46. Nc5 {[%clk 0:01:12]} 46... g4 {[%clk 0:00:14.3]} 47. Ke4 {[%clk 0:01:12.1]}
47... Nc4 {[%clk 0:00:09.5]} 48. Kf4 {[%clk 0:01:07.1]} 48... Ke7 {[%clk
0:00:10.1]} 49. e6 {[%clk 0:01:06.2]} 49... Nb6 {[%clk 0:00:09.8]} 50. Kxg4
{[%clk 0:01:04.8]} 50... Nd5 {[%clk 0:00:10.5]} 51. Kf5 {[%clk 0:01:03.4]} 51...
Nxb4 {[%clk 0:00:10.5]} 52. Ke5 {[%clk 0:01:03.8]} 52... Nc6+ {[%clk 0:00:10.5]}
53. Kd5 {[%clk 0:01:04.3]} 53... Nd8 {[%clk 0:00:10.6]} 54. Kc4 {[%clk
0:01:03.1]} 54... Nxe6 {[%clk 0:00:09.5]} 55. Nxe6 {[%clk 0:01:03.6]} 55... Kxe6
{[%clk 0:00:10.4]} 56. Kb5 {[%clk 0:01:04.1]} 56... Kd7 {[%clk 0:00:11.3]} 57.
Ka6 {[%clk 0:01:04.6]} 57... Kc7 {[%clk 0:00:12.2]} 58. Kxa7 {[%clk 0:01:05.2]}
1/2-1/2